Workbook

Sheet Home Page
D21: =Tabout0 -> The Prefab Toolkit enables costs to be combined with time in order to assess the merits of prefabrication at the start of the design and construction process. The user inputs parameters that cover site, structure and construction conditions of the design. Once the user has entered all the necessary information the tool will present the best prefabrication option suitable for their design. From there the tool will assess the time and cost benefits of building with prefabrication rather than a traditional style of build. Through graphical and written comparisons traditional and prefabricated can be measured against each other. The Prefab Toolkit was developed and funded through PrefabNZ Incorporated and Victoria University of Wellington, with additional development by BRANZ Ltd.
I33: ©2013 PrefabNZ Inc.

Sheet Site
L10: Did you know?
L11: =Tabout1 -> Prefab’s sustainability merits include reduced material waste through efficient ordering, indoor protection, pre-planning and cutting, and re-use. Up to 60% of material usage can be saved using modular construction. Currently, 40% of our country’s waste is created by the New Zealand construction industry so there are good reasons to be making improvements. Potential benefits include less disruption, noise, pollution, effluence, ground-works, traffic and fewer deliveries. It has been estimated that a prefab building contributes 15% less greenhouse gas emissions in its construction compared with traditional construction.
I33: ©2013 PrefabNZ Inc.

Sheet Structure
L10: Did you know?
L11: =Tabout2A -> Prefabrication can be a high quality built solution:
L14: =Tabout2B -> “Improvement in quality is regarded as the principal advantage of prefabricated housing”
L17: =Tabout2C -> according to UK research by Brian Cook in 2005.
L19: =Tabout3C -> Prefab comes in all shapes and sizes, from small components such as pre-nailed wall frames, to panels, larger modules (3D volumes) or even complete buildings. Hybrid prefab is a mixture of several prefab systems, or prefab with traditional construction. Prefab can be made of timber, concrete, metals or plastics or any combination. Factory testing and quality controls enable a tighter building envelope and better energy efficiencies for reduced running costs throughout the building’s life-cycle.
I33: ©2013 PrefabNZ Inc.

Sheet Construction
L10: Did you know?
L11: =text_sheet!C17 -> Prefab is a way to create innovative high-quality buildings on time and within budget. Your home probably has prefab roof trusses and wall frames. Your bach might be a transportable building. Your workplace may use precast concrete elements.
L18: =Tabout3B -> Prefab is short for prefabrication. It refers to any part of a building that is made away from the final building site, which is why it can also be referred to as offsite construction. Prefab is a complimentary system to traditional construction.
I33: ©2013 PrefabNZ Inc.

Sheet Results
D11: Your Project Summary | L11: =Tabout5 -> Thanks for using the Prefab Toolkit – for more info about prefab get in touch with PrefabNZ – email info@prefabnz.com or visit www.prefabnz.com
D13: Site | G13: Structure
D14: EQ Region | E14: =data_sheet!$E$3 -> Zone 1 | G14: No. of Floors | H14: =NoOfFloors -> 1
D15: Exposure Zone | E15: =data_sheet!$E$8 -> B | G15: Floor Area | H15: =data_sheet!H13 -> 100 m²
D16: Wind Regions | E16: =data_sheet!$E$12 -> A | G16: External Walls | H16: =ExternalWalls -> 4 | L16: =Tabout6 -> Should you require further information relating to BRANZ products, services and information please contact (04) 237 1170 or email branz@branz.co.nz
D17: Site Access | E17: =data_sheet!$E$16 -> Suburban | G17: Window:Wall | H17: =data_sheet!H14 -> 25 %
D18: Access Restrictions | E18: =IF(data_sheet!$H$3=TRUE,"Yes","No") -> No
D19: Site Restrictions | E19: =IF(data_sheet!$H$4=TRUE,"Yes","No") -> No | G19: Construction
D20: Distance from Town | E20: =data_sheet!H15 -> 30 km | G20: Foundations | H20: =data_sheet!$N$3 -> Timber Subfloor on Piles
G21: Lower Wall Framing | H21: =data_sheet!$N$10 -> Timber
G22: Lower Wall Cladding | H22: =data_sheet!$N$14 -> Weatherboards
G23: Upper Wall Framing | H23: =data_sheet!$N$20 -> Not Applicable
G24: Upper Wall Cladding | H24: =data_sheet!$N$25 -> Not Applicable
G25: Roof Cladding | H25: =data_sheet!$N$35 -> Long Run Metal
D28: Recommendations
D30: ="Recommended: "&IF(OptionComplete,"Transportable",IF(OptionModular,"Hybrid/Modular",IF(OptionOpen,"Open Panelised",IF(OptionClosed,"Closed Panelised","Prefabrication is Inappropriate")))) -> Recommended: Transportable
D31: =IF(OptionComplete,TcompleteIsBest,IF(OptionModular,TmodularIsBest,IF(OptionOpen,TopenIsBest,IF(OptionClosed,TclosedIsBest,TnoRecommend)))) -> Based on the information supplied, the best prefabrication method to use would be the transportable building option. Transportable buildings are commonly known as portable, relocatable, or offsite-built dwellings in New Zealand. Transportable buildings are constructed in a factory or yard and then moved to site where they are attached to permanent foundations.
D37: =IF(AND(OptionComplete,OptionModular),"Alternatively: Hybrid/Modular",IF(OR(OptionComplete,OptionModular),IF(OptionOpen,"Alternatively: Open or Closed Panelised",IF(OptionClosed,"Alternatively: Closed Panelised")),"")) -> Alternatively: Hybrid/Modular
D38: =IF(AND(OptionComplete,OptionModular),TmodularAlternative,IF(OR(OptionComplete,OptionModular),IF(OptionOpen,TopenClosedAlternative,IF(OptionClosed,TclosedAlternative)),"")) -> An alternative prefabrication method for your circumstances is hybrid/modular. Modular, sectional, or volumetric prefabrication refer to three-dimensional structural units which are combined at site with other units or systems. Cores and pods are non-structural units used inside conventional buildings or modules.
D43: =IF(AND(OptionComplete,OptionModular,OptionClosed),"Alternatively: Open or Closed Panelised","") -> Alternatively: Open or Closed Panelised
D44: =IF(AND(OptionComplete,OptionModular,OptionClosed),TopenClosedAlternative,"") -> An alternative prefabrication method for your circumstances is closed or open panelised. Panelised or non-volumetric prefabrication is made of manufactured panel elements that can be classified as open or closed: Open refers to framing elements, whereas closed panels incorporate services with windows and doors, exterior cladding and interior lining.
D49: Prefabrication is faster than traditional construction.
D71: Prefabrication results in less greenhouse gas emissions.
D95: *Carbon dioxide emissions in tonnes
D97: Sustainability Benefits of Prefabrication
D99: Factory-control makes best use of materials and produces less waste.
D101: Reduced energy consumption compared to on-site construction.
D103: Reduced transport costs as site travelling is minimised.
D105: Minimal site disruption minimizes production times and long-term footprint.
D107: Because construction is done in a controlled environment the health and safety of workers can be closely monitored.
D110: Tool and material security as work is done in a secure facility.
D112: Reduced noise levels onsite. Neighbours do not have to ‘put up’ with construction noise.
D114: Issues to Consider
D116: =SUBSTITUTE(TyourEQ,"X",IF(data_sheet!E3>=3,"high",IF(data_sheet!E3>=2,"moderate","low"))) -> Your site is in a high risk earthquake zone.
D117: =TinfoEQ -> Wind and earthquake forces exert horizontal forces on buildings. Bracing design involves the determination of both the extent of these forces, called the bracing demand, and also the determination of the capacity of the building and its elements to resist these forces, called bracing capacity (NZS 3604:2011). The earthquake bracing demand on the building structure shall be assessed on the basis of the building location (ie earthquake zone) amongst other things. Prefabricated buildings can be made as strong as necessary to provide the bracing required.
D125: =SUBSTITUTE(TyourExposure,"X",IF(data_sheet!E8>=3,"high",IF(data_sheet!E10>=2,"moderate","low"))) -> Your site is exposed to high levels of sea salt and other corrosive substances.
D126: =TinfoExposure -> All buildings in New Zealand are classified into exposure zones. The zoning reflects site exposure to sea spray or geothermal areas and will determine the materials that can be used. For example, metal claddings and fastenings will rust more quickly than stainless steel fastenings when exposed to sea spray. The site zone will affect guarantees manufacturers offer on their products. Prefabrication is no different in this regard to traditional construction and can be used in corrosion zones, with choices about materials used determining the durability at the structure.
D134: =SUBSTITUTE(TyourWind,"X",IF(data_sheet!E12>=3,"exposed to lee winds",IF(data_sheet!E17>=2,"subject to strong winds","not subject to strong winds"))) -> Your site is in a region exposed to lee winds.
D135: =TinfoWindRegions -> Buildings are required to withstand lateral loads applied by wind. The amount of bracing required to resist the lateral loads on the building is based on the design wind speed. NZS 3604 divides New Zealand into two wind regions (A and W) and several lee zone areas-these are areas where the landforms create localized wind acceleration resulting in higher wind speeds than the rest of the region. Prefabrication is no different in this regard to traditional construction, and can be designed to have the required bracing elements.
D142: =SUBSTITUTE(SUBSTITUTE(SUBSTITUTE(TyourSiteAccess,"Xa",IF(SiteAccess=1,"an urban",IF(SiteAccess=2,"a suburban","a rural"))),"Xb",IF(AccessRestricted," Access to your site is restricted. ","")),"Xc",IF(SiteRestricted," There are obstructions around your site.","")) -> Your site is situated in a suburban location.
D143: =TinfoSiteAccessA -> Site access is a very important aspect of any construction project. It is necessary to have a clear understanding of the site and the methods of delivery to and from as this can have influence on both cost and time overruns. We have broken this into three types of site:
D146: =TinfoSiteAccessB -> • Urban locations typically require craneage to access sites, which is specific to the site and not assessed with this tool.
D148: =TinfoSiteAccessC -> • Suburban locations may have infrastructure and utility lines that restrict access, which are site specific and no assessed with this tool.
D150: =TinfoSiteAccessD -> • Rural locations are likely to have slope or vegetation restrictions, and potentially narrow difficult roads, which are site specific and not assessed with this tool.
D152: =TinfoSiteAccessE -> • Access restrictions: there is no access for HGV's or large mobile cranes due to low road bridges, long/windy/narrow driveways, or poor bearing surfaces. This restricts access to small rigid HGV's with Hilabs, and LGVs.
D155: =TinfoSiteAccessF -> • Site restrictions: there is no ability to swing a load due to neighbouring buildings, infrastructure, vegetation, etc. Hence no craneage is possible.
D159: Disclaimer
D160: =Tabout4 -> PrefabNZ Incorporated can not be held responsible for the reliability of the Prefab Toolkit results. The results are limited by the quality of case study data which has been supplied confidentially by other parties. The Prefab Toolkit will be updated over time with future versions of increasing accuracy. The purpose of the Prefab Toolkit is as a 'conversation starter' to enable projects to consider prefabrication as an alternative to traditional construction methods. Any feedback about the Prefab Toolkit can be directed to info@prefabnz.com
I167: ©2013 PrefabNZ Inc.

Sheet FAQ
D11: =text_sheet!C49 -> What makes prefab so special? | L11: Links (click to access)
D12: =text_sheet!C50 -> Prefab is an agent for innovation and can offer higher-quality, more timely and cost-effective built solutions to clients. Unless you know about the range of available options, you won’t be able to benefit from them!
L13: PrefabNZ Homepage
L15: PrefabNZ Directory
D16: =text_sheet!C51 -> How exactly does prefab improve quality? | L16: For access to PrefabNZ services and industry contacts.
D17: =text_sheet!C52 -> By constructing parts (components, panels, modules or complete buildings) in a controlled environment, away from inclement weather, where worker and resource use can be closely monitored and enhanced.
L19: BRANZ Homepage
D20: =text_sheet!C53 -> “This type of construction method allows for greater quality control, as faults can be identified early and easily managed and addressed placing more professionalism back into the industry” Collin Clench (Performance Assurance Manager, Hutt City Council)
L21: BRANZ SR 279
L22: Study report on costs and emissions of prefab projects
D24: =text_sheet!C54 -> How does prefab save time?
D25: =text_sheet!C55 -> “By constructing parts off site (in a factory or yard) at the same time as on site construction takes place.” Michelle Kaufmann (Prefab Green)
D28: =text_sheet!C56 -> I thought prefab was meant to be cheaper - how does prefab save money?
D29: =text_sheet!C57 -> Prefab is primarily a way to a higher quality built solution. It is possible to save money by repeating elements or details, reusing templates or jigs, and other efficiencies in a controlled environment. Also, cost savings can be achieved from a reduced timeframe and subsequent reduced borrowings.
D34: =text_sheet!C58 -> But isn’t prefab flimsy, temporary and mobile?
D35: =text_sheet!C59 -> Not anymore! Past prefabs may have had one or all of these attributes but today the use of the computer for mass-customisation enables a variety of high-quality products to be designed, fabricated and constructed.
D39: =text_sheet!C60 -> Don’t all prefabs look the same – little boxes of ticky-tacky…?
D40: =text_sheet!C61 -> Surprisingly, even cultures that appear to have more homogeneity than our own (such as Japan) claim that each prefab building is unique. As a general rule, the smaller the component, the greater the variation and computer-aided-design enables customisation by clients. We have moved from an era of ‘mass-standardisation’ in the mid-20th-century to an era of ‘mass-customisation’ today.
D46: =text_sheet!C62 -> What’s so great about joining PrefabNZ?
D47: =text_sheet!C63 -> Lots of tangible stuff (web, e-news, database, events etc.) but also, you get to connect your business with other industry players to either buy or sell prefab or offsite systems, technologies and production capabilities from or to related product and service providers.
D51: =text_sheet!C64 -> How will joining PrefabNZ help develop my business?
D52: =text_sheet!C65 -> Through awareness of current research and development initiatives and possible collaborations and joint ventures with like-minded, compatible businesses. Why re-invent the wheel…
D56: =text_sheet!C66 -> When is the best time to consider prefab options?
D57: =text_sheet!C67 -> Learn about prefab options NOW so you have them in your prefab tool-box. Consider prefab as EARLY in the design process as possible. Meet with specifiers, potential contractors and the client early in the design process to find out when the design needs to be frozen, for potential prefab benefits to be maximised.
D62: =text_sheet!C68 -> Why will prefab work now when it has failed in the past?
D63: =text_sheet!C69 -> Today we have learnt from past mistakes and now understand that it takes more than great design – marketing and financial factors are crucial at start-up. We also have improved technologies (computer to machinery fabrication) and the market demand is there due to increased global prefab awareness since the early 2000s.
D68: =text_sheet!C70 -> How can prefab be a more sustainable construction option?
D69: =text_sheet!C71 -> In a controlled environment it is possible to minimise material waste through careful use and re-use, and to achieve minimal construction tolerances to prevent energy loss (and reduce running costs).
D73: =text_sheet!C72 -> What does BIM and inter-operability have to do with prefab?
D74: =text_sheet!C73 -> Industry buzz-words BIM (building information management) and inter-operability are ways for the industry to collaborate during the design and construction process, by working off a shared digital model with components (or panels or modules) traceable from design to fabrication to installation. This process is more efficient and productive. Many see this as the way of the future.
I80: ©2013 PrefabNZ Inc.

Sheet Exposure Map (hidden)

Sheet EQ Regions (hidden)

Sheet Wind Regions (hidden)

Sheet text_sheet (hidden)
B1: Title | C1: Text
B2: Recommendations
B3: Transportable is Best | C3: Based on the information supplied, the best prefabrication method to use would be the transportable building option. Transportable buildings are commonly known as portable, relocatable, or offsite-built dwellings in New Zealand. Transportable buildings are constructed in a factory or yard and then moved to site where they are attached to permanent foundations.
B4: Hybrid/Modular is Best | C4: Based on the information supplied hybrid/modular prefabrication would be the best prefabrication method to use. Modular, sectional, or volumetric prefabrication refer to three-dimensional structural units which are combined at site with other units or systems. Cores and pods are non-structural units used inside conventional buildings or modules.
B5: Panel (Open) is Best | C5: Based on the information supplied the best prefabrication method to use would be open panelised prefabrication. Panelised or non-volumetric prefabrication is made of manufactured panel elements that can be classified as open or closed: Open refers to framing elements.
B6: Panel (Closed) is Best | C6: Based on the information supplied the best prefabrication method to use would be closed panelised prefabrication. Panelised or non-volumetric prefabrication is made of manufactured panel elements that can be classified as open or closed: Closed panels incorporate services with windows and doors, exterior cladding and interior lining.
B7: Hybrid/Modular is Alternative | C7: An alternative prefabrication method for your circumstances is hybrid/modular. Modular, sectional, or volumetric prefabrication refer to three-dimensional structural units which are combined at site with other units or systems. Cores and pods are non-structural units used inside conventional buildings or modules.
B8: Panel (Closed) is Alternative | C8: An alternative prefabrication method for your circumstances is closed panelised. Panelised or non-volumetric prefabrication is made of manufactured panel elements that can be classified as open or closed: Closed panels incorporate services with windows and doors, exterior cladding and interior lining.
B9: Panel (Open or Closed) is Alternative | C9: An alternative prefabrication method for your circumstances is closed or open panelised. Panelised or non-volumetric prefabrication is made of manufactured panel elements that can be classified as open or closed: Open refers to framing elements, whereas closed panels incorporate services with windows and doors, exterior cladding and interior lining.
B10: No Recommendation | C10: Unfortunately there is no obvious prefabrication solution available to you. If you wish to further explore whether a prefabrication solution is possible then please contact info@prefabnz.com
B11: Popup Boxes
B12: About Box 0 Introduction | C12: The Prefab Toolkit enables costs to be combined with time in order to assess the merits of prefabrication at the start of the design and construction process. The user inputs parameters that cover site, structure and construction conditions of the design. Once the user has entered all the necessary information the tool will present the best prefabrication option suitable for their design. From there the tool will assess the time and cost benefits of building with prefabrication rather than a traditional style of build. Through graphical and written comparisons traditional and prefabricated can be measured against each other. The Prefab Toolkit was developed and funded through PrefabNZ Incorporated and Victoria University of Wellington, with additional development by BRANZ Ltd.
B13: About Box 1 Site (Did you know?) | C13: Prefab’s sustainability merits include reduced material waste through efficient ordering, indoor protection, pre-planning and cutting, and re-use. Up to 60% of material usage can be saved using modular construction. Currently, 40% of our country’s waste is created by the New Zealand construction industry so there are good reasons to be making improvements. Potential benefits include less disruption, noise, pollution, effluence, ground-works, traffic and fewer deliveries. It has been estimated that a prefab building contributes 15% less greenhouse gas emissions in its construction compared with traditional construction.
A14: About Box 2 Structure (Did you know?) | C14: Prefabrication can be a high quality built solution:
C15: “Improvement in quality is regarded as the principal advantage of prefabricated housing”
C16: according to UK research by Brian Cook in 2005.
B17: About Box 3 Construction (Did you know?) | C17: Prefab is a way to create innovative high-quality buildings on time and within budget. Your home probably has prefab roof trusses and wall frames. Your bach might be a transportable building. Your workplace may use precast concrete elements.
C18: Prefab is short for prefabrication. It refers to any part of a building that is made away from the final building site, which is why it can also be referred to as offsite construction. Prefab is a complimentary system to traditional construction.
C19: Prefab comes in all shapes and sizes, from small components such as pre-nailed wall frames, to panels, larger modules (3D volumes) or even complete buildings. Hybrid prefab is a mixture of several prefab systems, or prefab with traditional construction. Prefab can be made of timber, concrete, metals or plastics or any combination. Factory testing and quality controls enable a tighter building envelope and better energy efficiencies for reduced running costs throughout the building’s life-cycle.
B20: About Box 4 Results (Disclaimer) | C20: PrefabNZ Incorporated can not be held responsible for the reliability of the Prefab Toolkit results. The results are limited by the quality of case study data which has been supplied confidentially by other parties. The Prefab Toolkit will be updated over time with future versions of increasing accuracy. The purpose of the Prefab Toolkit is as a 'conversation starter' to enable projects to consider prefabrication as an alternative to traditional construction methods. Any feedback about the Prefab Toolkit can be directed to info@prefabnz.com
B21: About Box 5 Results (PrefabNZ) | C21: Thanks for using the Prefab Toolkit – for more info about prefab get in touch with PrefabNZ – email info@prefabnz.com or visit www.prefabnz.com
B22: About Box 6 Results (BRANZ) | C22: Should you require further information relating to BRANZ products, services and information please contact (04) 237 1170 or email branz@branz.co.nz
B23: Enter Distance from Town | C23: Approximately how far out of the nearest large town/city (pop. 10 000 or more) are you?
B24: Enter External Walls | C24: The shape of the outside perimeter is an important consideration in estimating the total construction cost. Generally, the more complex the shape, the more expensive the structure per square metre of floor area. If the shape is complex it is going to be more difficult to construct and to break down into modular or regular components. Determine the complexity of the design by specifying the number of external walls.
B25: Enter Number of Floors | C25: Although prefabrication is not limited to any scale, for the purpose of maintaining a constant scope this toolkit only allows input of up to 3 floors.
B26: Enter Window Ratio | C26: Not only do windows play an important part in the aesthetics and environmental control of a building, but they also have bearing on the structure. Although for aesthetic purposes it may be desired to have large facades of glazing, it can be an impractical exercise requiring extra bracing resulting in the expenditure of more money and time. Acknowledging this is an important aspect in the design phase. Typically less than 30% is a recommended ratio of windows to wall.
B27: Info Earthquake Regions | C27: Wind and earthquake forces exert horizontal forces on buildings. Bracing design involves the determination of both the extent of these forces, called the bracing demand, and also the determination of the capacity of the building and its elements to resist these forces, called bracing capacity (NZS 3604:2011). The earthquake bracing demand on the building structure shall be assessed on the basis of the building location (ie earthquake zone) amongst other things. Prefabricated buildings can be made as strong as necessary to provide the bracing required.
B28: Info Exposure Zones | C28: All buildings in New Zealand are classified into exposure zones. The zoning reflects site exposure to sea spray or geothermal areas and will determine the materials that can be used. For example, metal claddings and fastenings will rust more quickly than stainless steel fastenings when exposed to sea spray. The site zone will affect guarantees manufacturers offer on their products. Prefabrication is no different in this regard to traditional construction and can be used in corrosion zones, with choices about materials used determining the durability at the structure.
B29: Info Wind Regions | C29: Buildings are required to withstand lateral loads applied by wind. The amount of bracing required to resist the lateral loads on the building is based on the design wind speed. NZS 3604 divides New Zealand into two wind regions (A and W) and several lee zone areas-these are areas where the landforms create localized wind acceleration resulting in higher wind speeds than the rest of the region. Prefabrication is no different in this regard to traditional construction, and can be designed to have the required bracing elements.
B30: Info Site Access | C30: Site access is a very important aspect of any construction project. It is necessary to have a clear understanding of the site and the methods of delivery to and from as this can have influence on both cost and time overruns. We have broken this into three types of site:
C31: • Urban locations typically require craneage to access sites, which is specific to the site and not assessed with this tool.
C32: • Suburban locations may have infrastructure and utility lines that restrict access, which are site specific and no assessed with this tool.
C33: • Rural locations are likely to have slope or vegetation restrictions, and potentially narrow difficult roads, which are site specific and not assessed with this tool.
C34: • Access restrictions: there is no access for HGV's or large mobile cranes due to low road bridges, long/windy/narrow driveways, or poor bearing surfaces. This restricts access to small rigid HGV's with Hilabs, and LGVs.
C35: • Site restrictions: there is no ability to swing a load due to neighbouring buildings, infrastructure, vegetation, etc. Hence no craneage is possible.
B36: Summary
B37: Your Earthquake Region | C37: Your site is in a X risk earthquake zone.
B38: Your Exposure Zone | C38: Your site is exposed to X levels of sea salt and other corrosive substances.
B39: Your Wind Region | C39: Your site is in a region X.
B40: Sustainability Benefits of Prefab | C40: Factory-control makes best use of materials and produces less waste.
C41: Reduced energy consumption compared to on-site construction.
C42: Reduced transport costs as site travelling is minimised.
C43: Minimal site disruption minimizes production times and long-term footprint.
C44: Because construction is done in a controlled environment the health and safety of workers can be closely monitored.
C45: Tool and material security as work is done in a secure facility.
C46: Reduced noise levels onsite. Neighbours do not have to ‘put up’ with construction noise.
B47: Your Site Access | C47: Your site is situated in Xa location. Xb Xc
B48: FAQ
B49: FAQ Title A | C49: What makes prefab so special?
B50: FAQ Text A | C50: Prefab is an agent for innovation and can offer higher-quality, more timely and cost-effective built solutions to clients. Unless you know about the range of available options, you won’t be able to benefit from them!
B51: FAQ Title B | C51: How exactly does prefab improve quality?
B52: FAQ Text B1 | C52: By constructing parts (components, panels, modules or complete buildings) in a controlled environment, away from inclement weather, where worker and resource use can be closely monitored and enhanced.
B53: FAQ Text B2 | C53: “This type of construction method allows for greater quality control, as faults can be identified early and easily managed and addressed placing more professionalism back into the industry” Collin Clench (Performance Assurance Manager, Hutt City Council)
B54: FAQ Title C | C54: How does prefab save time?
B55: FAQ Text C | C55: “By constructing parts off site (in a factory or yard) at the same time as on site construction takes place.” Michelle Kaufmann (Prefab Green)
B56: FAQ Title D | C56: I thought prefab was meant to be cheaper - how does prefab save money?
B57: FAQ Text D | C57: Prefab is primarily a way to a higher quality built solution. It is possible to save money by repeating elements or details, reusing templates or jigs, and other efficiencies in a controlled environment. Also, cost savings can be achieved from a reduced timeframe and subsequent reduced borrowings.
B58: FAQ Title E | C58: But isn’t prefab flimsy, temporary and mobile?
B59: FAQ Text E | C59: Not anymore! Past prefabs may have had one or all of these attributes but today the use of the computer for mass-customisation enables a variety of high-quality products to be designed, fabricated and constructed.
B60: FAQ Title F | C60: Don’t all prefabs look the same – little boxes of ticky-tacky…?
B61: FAQ Text F | C61: Surprisingly, even cultures that appear to have more homogeneity than our own (such as Japan) claim that each prefab building is unique. As a general rule, the smaller the component, the greater the variation and computer-aided-design enables customisation by clients. We have moved from an era of ‘mass-standardisation’ in the mid-20th-century to an era of ‘mass-customisation’ today.
B62: FAQ Title G | C62: What’s so great about joining PrefabNZ?
B63: FAQ Text G | C63: Lots of tangible stuff (web, e-news, database, events etc.) but also, you get to connect your business with other industry players to either buy or sell prefab or offsite systems, technologies and production capabilities from or to related product and service providers.
B64: FAQ Title H | C64: How will joining PrefabNZ help develop my business?
B65: FAQ Text H | C65: Through awareness of current research and development initiatives and possible collaborations and joint ventures with like-minded, compatible businesses. Why re-invent the wheel…
B66: FAQ Title I | C66: When is the best time to consider prefab options?
B67: FAQ Text I | C67: Learn about prefab options NOW so you have them in your prefab tool-box. Consider prefab as EARLY in the design process as possible. Meet with specifiers, potential contractors and the client early in the design process to find out when the design needs to be frozen, for potential prefab benefits to be maximised.
B68: FAQ Title J | C68: Why will prefab work now when it has failed in the past?
B69: FAQ Text J | C69: Today we have learnt from past mistakes and now understand that it takes more than great design – marketing and financial factors are crucial at start-up. We also have improved technologies (computer to machinery fabrication) and the market demand is there due to increased global prefab awareness since the early 2000s.
B70: FAQ Title K | C70: How can prefab be a more sustainable construction option?
B71: FAQ Text K | C71: In a controlled environment it is possible to minimise material waste through careful use and re-use, and to achieve minimal construction tolerances to prevent energy loss (and reduce running costs).
B72: FAQ Title L | C72: What does BIM and inter-operability have to do with prefab?
B73: FAQ Text L | C73: Industry buzz-words BIM (building information management) and inter-operability are ways for the industry to collaborate during the design and construction process, by working off a shared digital model with components (or panels or modules) traceable from design to fabrication to installation. This process is more efficient and productive. Many see this as the way of the future.

Sheet tracking_sheet (hidden)
D1: Prefab Recommendations | H1: Time of Construction | N1: Base Emission Levels (kg CO2·e) | U1: Total Greenhouse Gas Emmisions (tonnes of CO2)
D2: Transportable | E2: =AND(NOT(AccessRestricted),FloorArea<=140,NoOfFloors<=1,Distance<=30,WindowWall<=30,ExternalWalls<=6,Foundation=1) -> TRUE | H2: Build Style | I2: B (days) | J2: TB=B·a·KT (days) | K2: Non-Advised | L2: Advised | N2: Type | O2: Embodied | P2: Waste | Q2: Transport | R2: Construction | S2: Total ('000) | U2: Build Style | Z2: Non-Advised (days) | AD2: Advised (days)
D3: Modular/Hybrid | E3: =AND(NOT(SiteRestricted),FloorArea<=300,NoOfFloors<=2,Distance<=150,WindowWall<=35,ExternalWalls<=12,LowerFraming<3) -> TRUE | H3: Transportable | I3: 72 | J3: =ROUND(I3*$F$45*$F$47,0) -> 45 | K3: =IF(OptionComplete,0,J3) -> 0 | L3: =IF(OptionComplete,J3,0) -> 45 | N3: Traditional | O3: 5030 | P3: 1500 | Q3: 420 | R3: 410 | S3: =SUM(O3:R3)/1000 -> 7.36 | V3: =O26 -> Embodied | W3: =P26 -> Waste | X3: Transport | Y3: Construction | Z3: =V3 -> Embodied | AA3: =W3 -> Waste | AB3: Transport | AC3: Construction | AD3: Embodied | AE3: Waste | AF3: Transport | AG3: Construction
D4: Panel (Closed) | E4: =AND(FloorArea<=300,NoOfFloors<=3,Distance<=200,WindowWall<=50,ExternalWalls<=20,LowerFraming<3) -> TRUE | H4: Hybrid/Modular | I4: 36 | J4: =ROUND(I4*$F$45*$F$47,0) -> 23 | K4: =IF(OptionModular,0,J4) -> 0 | L4: =IF(OptionModular,J4,0) -> 23 | N4: Transportable | O4: 5030 | P4: 560 | Q4: 200 | R4: 670 | S4: =SUM(O4:R4)/1000 -> 6.46 | U4: Transportable | V4: =O28/1000 -> 2.391666667 | W4: =P28/1000 -> 0.4666666667 | X4: 0.1679275 | Y4: 0.5583333333 | Z4: =IF(OptionComplete,0,V4) -> 0 | AA4: =IF(OptionComplete,0,W4) -> 0 | AB4: =IF(OptionComplete,0,X4) -> 0 | AC4: =IF(OptionComplete,0,Y4) -> 0 | AD4: =IF(OptionComplete,V4,0) -> 2.391666667 | AE4: =IF(OptionComplete,W4,0) -> 0.4666666667 | AF4: =IF(OptionComplete,X4,0) -> 0.1679275 | AG4: =IF(OptionComplete,Y4,0) -> 0.5583333333
D5: Panel (Open) | E5: =AND(FloorArea<=300,NoOfFloors<=3,Distance<=50,WindowWall<=50,ExternalWalls<=20,LowerFraming<3) -> TRUE | H5: Panelised | I5: 60 | J5: =ROUND(I5*$F$45*$F$47,0) -> 38 | K5: =IF(OR(OptionClosed,OptionOpen),0,J5) -> 0 | L5: =IF(OR(OptionClosed,OptionOpen),J5,0) -> 38 | N5: Panelised | O5: 5030 | P5: 730 | Q5: 240 | R5: 460 | S5: 6.46 | U5: Hybrid/Modular | V5: =O29/1000 -> 2.391666667 | W5: 0.6083333333 | X5: 0.1997291667 | Y5: 0.3833333333 | Z5: =IF(OptionModular,0,V5) -> 0 | AA5: =IF(OptionModular,0,W5) -> 0 | AB5: =IF(OptionModular,0,X5) -> 0 | AC5: =IF(OptionModular,0,Y5) -> 0 | AD5: =IF(OptionModular,V5,0) -> 2.391666667 | AE5: =IF(OptionModular,W5,0) -> 0.6083333333 | AF5: =IF(OptionModular,X5,0) -> 0.1997291667 | AG5: =IF(OptionModular,Y5,0) -> 0.3833333333
N6: Hybrid/Modular | O6: 5030 | P6: 580 | Q6: 200 | R6: 660 | S6: 6.47 | U6: Panelised | V6: 2.391666667 | W6: 0.4833333333 | X6: 0.1669375 | Y6: 0.55 | Z6: =IF(OR(OptionClosed,OptionOpen),0,V6) -> 0 | AA6: =IF(OR(OptionClosed,OptionOpen),0,W6) -> 0 | AB6: =IF(OR(OptionClosed,OptionOpen),0,X6) -> 0 | AC6: =IF(OR(OptionClosed,OptionOpen),0,Y6) -> 0 | AD6: =IF(OR(OptionClosed,OptionOpen),V6,0) -> 2.391666667 | AE6: =IF(OR(OptionClosed,OptionOpen),W6,0) -> 0.4833333333 | AF6: =IF(OR(OptionClosed,OptionOpen),X6,0) -> 0.1669375 | AG6: =IF(OR(OptionClosed,OptionOpen),Y6,0) -> 0.55
H7: Traditional | I7: 84 | J7: =ROUND(I7*$F$45*$F$47,0) -> 53 | K7: 0 | L7: =J7 -> 53 | N7: 120 m2 floor area, timber frame, timber foundation, fibre-cement cladding, steel long-run roof
U8: Traditional | V8: =O27/1000 -> 2.391666667 | W8: =P27/1000 -> 1.25 | X8: 0.351075 | Y8: 0.3416666667 | Z8: 0 | AA8: 0 | AB8: 0 | AC8: 0 | AD8: =V8 -> 2.391666667 | AE8: =W8 -> 1.25 | AF8: 0.351075 | AG8: 0.3416666667
C9: Construction Material Time Factor | E9: Ke | F9: Ks
C10: Subfloor framing | H10: Construction Material Embodied Emissions | N10: Base Emission Levels per House Size (kg CO2·e/m2)
D11: Timber framing on piles | E11: 10 | F11: =IF(Foundation=1,tracking_sheet!E11,"") -> 10 | H11: Concrete slab on grade | K11: 51 | L11: =IF(Foundation=2,K11,"") ->  | N11: Type | O11: Embodied | P11: Waste | Q11: Transport | R11: Construction | S11: Total
D12: Concrete slab on grade | E12: 30 | F12: =IF(Foundation=2,tracking_sheet!E12,"") ->  | H12: Steel Framing | K12: 20 | L12: =IF(LowerFraming=2,K12,"") ->  | N12: Traditional | O12: =O3/120 -> 41.91666667 | P12: =P3/120 -> 12.5 | Q12: 3.5 | R12: 3.416666667 | S12: =SUM(O12:R12) -> 61.33333333
C13: Floor cladding | H13: Weatherboards | K13: -18 | L13: =IF(LowerCladding=1,K13,"") -> -18 | N13: Transportable | O13: =O4/120 -> 41.91666667 | P13: 4.666666667 | Q13: 1.666666667 | R13: 5.583333333 | S13: =SUM(O13:R13) -> 53.83333333
D14: Exposed/carpeted concrete | E14: 10 | F14: =IF(FloorSurface=1,tracking_sheet!E14,"") ->  | H14: Steel Cladding | K14: 4 | L14: =IF(LowerCladding=6,K14,"") ->  | N14: Panelised | O14: 41.91666667 | P14: 6.083333333 | Q14: 2 | R14: 3.833333333 | S14: 53.83333333
D15: Timber floor boards | E15: 20 | F15: =IF(FloorSurface=2,tracking_sheet!E15,"") -> 20 | H15: Concrete Tile Roof | K15: -4.6 | L15: =IF(RoofCladding=3,K15,"") ->  | N15: Hybrid/Modular | O15: 41.91666667 | P15: 4.833333333 | Q15: 1.666666667 | R15: 5.5 | S15: 53.91666667
D16: Sheet flooring | E16: 10 | F16: =IF(FloorSurface=3,tracking_sheet!E16,"") ->  | K16: Total Change | L16: =SUM(L11:L15) -> -18 | N16: Timber frame, timber foundation, fibre-cement cladding, steel long-run roof
C17: Lower wall framing
D18: Timber | E18: 20 | F18: =IF(LowerFraming=1,tracking_sheet!E18,"") -> 20 | N18: Final Emission Levels per House Size (kg CO2·e/m2)
D19: Steel | E19: 10 | F19: =IF(LowerFraming=2,tracking_sheet!E19,"") ->  | N19: Type | O19: Embodied | P19: Waste | Q19: Transport | R19: Construction | S19: Total
D20: Masonry | E20: 20 | F20: =IF(LowerFraming=3,tracking_sheet!E20,"") ->  | J20: Transport Factor | K20: 120 m² | L20: kg CO2·e/m² | N20: Traditional | O20: =O12+$L$16 -> 23.91666667 | P20: =P12 -> 12.5 | Q20: =L21 -> 3.51075 | R20: 3.416666667 | S20: =SUM(O20:R20) -> 43.34408333
C21: Lower wall cladding | J21: Traditional | K21: =140.43*MAX(Distance,30)/10 -> 421.29 | L21: =K21/120 -> 3.51075 | N21: Transportable | O21: =O13+$L$16 -> 23.91666667 | P21: =P13 -> 4.666666667 | Q21: =L22 -> 1.679275 | R21: 5.583333333 | S21: =SUM(O21:R21) -> 35.84594167
D22: Weatherboards | E22: 20 | F22: =IF(LowerCladding=1,tracking_sheet!E22,"") -> 20 | J22: Transportable | K22: =14.091*MAX(Distance,30)/10+159.24 -> 201.513 | L22: =K22/120 -> 1.679275 | N22: Panelised | O22: =O14+$L$16 -> 23.91666667 | P22: 6.083333333 | Q22: 1.997291667 | R22: 3.833333333 | S22: 35.830625
D23: Fibrecement/Plywood | E23: 10 | F23: =IF(LowerCladding=2,tracking_sheet!E23,"") ->  | J23: Panelised | K23: =63.427*MAX(Distance,30)/10+49.394 -> 239.675 | L23: 1.997291667 | N23: Hybrid/Modular | O23: =O15+$L$16 -> 23.91666667 | P23: 4.833333333 | Q23: 1.669375 | R23: 5.5 | S23: 35.919375
D24: Brick Veneer | E24: 20 | F24: =IF(LowerCladding=3,tracking_sheet!E24,"") ->  | J24: Hybrid/Modular | K24: =46.573*MAX(Distance,30)/10+60.606 -> 200.325 | L24: 1.669375 | N24: Timber frame, timber foundation, fibre-cement cladding, steel long-run roof
D25: Stucco/Plaster | E25: 20 | F25: =IF(LowerCladding=4,tracking_sheet!E25,"") ->  | N25: Final Emission Levels (kg CO2·e)
D26: Steel | E26: 10 | F26: =IF(LowerCladding=5,tracking_sheet!E26,"") ->  | N26: Type | O26: Embodied | P26: Waste | Q26: Transport | R26: Construction | S26: Total ('000)
C27: Upper wall framing | N27: Traditional | O27: =O20*FloorArea -> 2391.666667 | P27: 1250 | Q27: 351.075 | R27: 341.6666667 | S27: =SUM(O27:R27)/1000 -> 4.334408333
D28: Timber | E28: 20 | F28: =IF(UpperFraming=2,tracking_sheet!E28,"") ->  | N28: Transportable | O28: 2391.666667 | P28: 466.6666667 | Q28: 167.9275 | R28: 558.3333333 | S28: =SUM(O28:R28)/1000 -> 3.584594167
D29: Steel | E29: 10 | F29: =IF(UpperFraming=3,tracking_sheet!E29,"") ->  | N29: Panelised | O29: 2391.666667 | P29: 608.3333333 | Q29: 199.7291667 | R29: 383.3333333 | S29: 3.5830625
D30: Masonry | E30: 20 | F30: =IF(UpperFraming=4,tracking_sheet!E30,"") ->  | N30: Hybrid/Modular | O30: 2391.666667 | P30: 483.3333333 | Q30: 166.9375 | R30: 550 | S30: 3.5919375
C31: Upper wall cladding
D32: Weatherboards | E32: 20 | F32: =IF(UpperCladding=2,tracking_sheet!E32,"") -> 
D33: Fibrecement/Plywood | E33: 10 | F33: =IF(UpperCladding=3,tracking_sheet!E33,"") -> 
D34: Brick Veneer | E34: 20 | F34: =IF(UpperCladding=4,tracking_sheet!E34,"") -> 
D35: Stucco/Plaster | E35: 20 | F35: =IF(UpperCladding=5,tracking_sheet!E35,"") -> 
D36: Steel | E36: 10 | F36: =IF(UpperCladding=6,tracking_sheet!E36,"") -> 
C37: Roof Framing
D38: Roof Trusses | E38: 20 | F38: =IF(RoofFraming=1,tracking_sheet!E38,"") -> 20
D39: Skillion Trusses | E39: 10 | F39: =IF(RoofFraming=2,tracking_sheet!E39,"") -> 
C40: Roof cladding
D41: Profiled aluminum/zinc coated steel | E41: 10 | F41: =IF(RoofCladding=1,tracking_sheet!E41,"") -> 10
D42: Asphault shingles | E42: 10 | F42: =IF(RoofCladding=2,tracking_sheet!E42,"") -> 
D43: Concrete/clay tiles | E43: 15 | F43: =IF(RoofCladding=3,tracking_sheet!E43,"") -> 
E44: KT | F44: =SUM(F11:F43) -> 100
E45: KF=KT/80 | F45: =F44/80 -> 1.25
E47: a = Floor Area/200 | F47: =FloorArea/200 -> 0.5

Sheet data_sheet (hidden)
A1: Site | G1: Numeric | J1: Construction
A2: Factor | B2: Opt | C2: Range | D2: Selection | G2: Factor | H2: Selection | J2: Factor | K2: Opt | L2: Range | M2: Selection
A3: Earthquake Region | B3: 1 | C3: Zone 1 | D3: 1 | E3: =VLOOKUP(D3,B3:C6,2,FALSE) -> Zone 1 | G3: Access Restrictions | H3: FALSE | J3: Foundations | K3: 1 | L3: Timber Subfloor on Piles | M3: 1 | N3: =VLOOKUP(M3,K3:L4,2,FALSE) -> Timber Subfloor on Piles
B4: 2 | C4: Zone 2 | G4: Site Restrictions | H4: FALSE | K4: 2 | L4: Concrete Slab on Grade
B5: 3 | C5: Zone 3 | G5: Distance from Town | H5: 30
B6: 4 | C6: Zone 4 | G6: No. of Floors | H6: 1 | J6: Floor Surface | K6: 1 | L6: Exposed/Covered Concrete | M6: 2 | N6: =VLOOKUP(M6,K6:L8,2,FALSE) -> Timber Floor Boards
G7: Floor Area | H7: 100 | K7: 2 | L7: Timber Floor Boards
A8: Exposure Zone | B8: 1 | C8: B | D8: 1 | E8: =VLOOKUP(D8,B8:C10,2,FALSE) -> B | G8: External Walls | H8: 4 | K8: 3 | L8: Sheet
B9: 2 | C9: C | G9: Window/Wall | H9: 25 | Q9: ²
B10: 3 | C10: D | J10: Lower Wall Framing | K10: 1 | L10: Timber | M10: 1 | N10: =VLOOKUP(M10,K10:L12,2,FALSE) -> Timber
K11: 2 | L11: Steel
A12: Wind Regions | B12: 1 | C12: A | D12: 1 | E12: =VLOOKUP(D12,B12:C14,2,FALSE) -> A | G12: With Units | K12: 3 | L12: Masonry
B13: 2 | C13: W | G13: Floor Area | H13: =FloorArea&" m²" -> 100 m²
B14: 3 | C14: Lee Zone | G14: Window/Wall | H14: =WindowWall&" %" -> 25 % | J14: Lower Wall Cladding | K14: 1 | L14: Weatherboards | M14: 1 | N14: =VLOOKUP(M14,K14:L18,2,FALSE) -> Weatherboards
G15: Distance | H15: =Distance&" km" -> 30 km | K15: 2 | L15: Fibrecement/Plywood
A16: Site Access | B16: 1 | C16: Urban | D16: 2 | E16: =VLOOKUP(D16,B16:C18,2,FALSE) -> Suburban | K16: 3 | L16: Brick Veneer (Built Onsite)
B17: 2 | C17: Suburban | K17: 4 | L17: Plaster/Stucco (Built Onsite)
B18: 3 | C18: Rural | K18: 5 | L18: Steel
J20: Upper Wall Framing | K20: 1 | L20: Not Applicable | M20: 1 | N20: =VLOOKUP(M20,K20:L23,2,FALSE) -> Not Applicable
K21: 2 | L21: Timber
K22: 3 | L22: Steel
K23: 4 | L23: Masonry
J25: Upper Wall Cladding | K25: 1 | L25: Not Applicable | M25: 1 | N25: =VLOOKUP(M25,K25:L30,2,FALSE) -> Not Applicable
K26: 2 | L26: Weatherboards
K27: 3 | L27: Fibrecement/Plywood
K28: 4 | L28: Brick Veneer (Built Onsite)
K29: 5 | L29: Plaster/Stucco (Built Onsite)
K30: 6 | L30: Steel
J32: Roof Framing | K32: 1 | L32: Roof Trusses | M32: 1 | N32: =VLOOKUP(M32,K32:L33,2,FALSE) -> Roof Trusses
K33: 2 | L33: Skillion
J35: Roof Cladding | K35: 1 | L35: Long Run Metal | M35: 1 | N35: =VLOOKUP(M35,K35:L37,2,FALSE) -> Long Run Metal
K36: 2 | L36: Metal Tiles
K37: 3 | L37: Concrete/Clay Tiles

Sheet print_sheet (hidden)
N1: Prefab Toolkit
AE2: Report Produced:
AE3: =TODAY() -> 2013-05-27
P5: Version 2
C7: Data Provided
C9: Site | N9: Structure | W9: Construction
C10: Site Access | K10: =data_sheet!$E$16 -> Suburban | N10: No. of Floors | U10: =NoOfFloors -> 1 | W10: Foundations | AE10: =data_sheet!$N$3 -> Timber Subfloor on Piles
C11: Access Restrictions | K11: =IF(data_sheet!$H$3=TRUE,"Yes","No") -> No | N11: Floor Area (m²) | U11: =FloorArea -> 100 | W11: Lower Wall Framing | AE11: =data_sheet!$N$10 -> Timber
C12: Site Restrictions | K12: =IF(data_sheet!$H$4=TRUE,"Yes","No") -> No | N12: External Walls | U12: =ExternalWalls -> 4 | W12: Lower Wall Cladding | AE12: =data_sheet!$N$14 -> Weatherboards
C13: Distance from Town | K13: =Distance -> 30 | N13: Window:Wall (%) | U13: =WindowWall -> 25 | W13: Upper Wall Framing | AE13: =data_sheet!$N$20 -> Not Applicable
C14: EQ Region | K14: =data_sheet!$E$3 -> Zone 1 | W14: Upper Wall Cladding | AE14: =data_sheet!$N$25 -> Not Applicable
C15: Exposure Zone | K15: =data_sheet!$E$8 -> B | W15: Roof Cladding | AE15: =data_sheet!$N$35 -> Long Run Metal
C16: Wind Regions | K16: =data_sheet!$E$12 -> A
C18: Recommendations
C20: ="Recommended: "&IF(OptionComplete,"Transportable",IF(OptionModular,"Hybrid/Modular",IF(OptionOpen,"Open Panelised",IF(OptionClosed,"Closed Panelised","Prefabrication is Inappropriate")))) -> Recommended: Transportable
C21: =IF(OptionComplete,TcompleteIsBest,IF(OptionModular,TmodularIsBest,IF(OptionOpen,TopenIsBest,IF(OptionClosed,TclosedIsBest,TnoRecommend)))) -> Based on the information supplied, the best prefabrication method to use would be the transportable building option. Transportable buildings are commonly known as portable, relocatable, or offsite-built dwellings in New Zealand. Transportable buildings are constructed in a factory or yard and then moved to site where they are attached to permanent foundations.
C26: =IF(AND(OptionComplete,OptionModular),"Alternatively: Hybrid/Modular",IF(OR(OptionComplete,OptionModular),IF(OptionOpen,"Alternatively: Open or Closed Panelised",IF(OptionClosed,"Alternatively: Closed Panelised")),"")) -> Alternatively: Hybrid/Modular
C27: =IF(AND(OptionComplete,OptionModular),TmodularAlternative,IF(OR(OptionComplete,OptionModular),IF(OptionOpen,TopenClosedAlternative,IF(OptionClosed,TclosedAlternative)),"")) -> An alternative prefabrication method for your circumstances is hybrid/modular. Modular, sectional, or volumetric prefabrication refer to three-dimensional structural units which are combined at site with other units or systems. Cores and pods are non-structural units used inside conventional buildings or modules.
C31: =IF(AND(OptionComplete,OptionModular,OptionClosed),"Alternatively: Open or ClosedPanelised","") -> Alternatively: Open or ClosedPanelised
C32: =IF(AND(OptionComplete,OptionModular,OptionClosed),TopenClosedAlternative,"") -> An alternative prefabrication method for your circumstances is closed or open panelised. Panelised or non-volumetric prefabrication is made of manufactured panel elements that can be classified as open or closed: Open refers to framing elements, whereas closed panels incorporate services with windows and doors, exterior cladding and interior lining.
C36: Prefabrication is faster than traditional construction.
C53: Prefabrication results in less greenhouse gas emissions.
E69: *Carbon dioxide emissions in tonnes
C71: Sustainability Benefits of Prefabrication
C73: Factory-control makes best use of materials and produces less waste.
C75: Reduced energy consumption compared to on-site construction.
C77: Reduced transport costs as site travelling is minimised.
C79: Minimal site disruption minimizes production times and long-term footprint.
C81: Because construction is done in a controlled environment the health and safety of workers can be closely monitored.
C83: Tool and material security as work is done in a secure facility.
C85: Reduced noise levels onsite. Neighbours do not have to ‘put up’ with construction noise.
C87: Issues to Consider
C89: =SUBSTITUTE(TyourEQ,"X",IF(data_sheet!D3>=3,"high",IF(data_sheet!D3>=2,"moderate","low"))) -> Your site is in a low risk earthquake zone.
C90: =text_sheet!C27 -> Wind and earthquake forces exert horizontal forces on buildings. Bracing design involves the determination of both the extent of these forces, called the bracing demand, and also the determination of the capacity of the building and its elements to resist these forces, called bracing capacity (NZS 3604:2011). The earthquake bracing demand on the building structure shall be assessed on the basis of the building location (ie earthquake zone) amongst other things. Prefabricated buildings can be made as strong as necessary to provide the bracing required.
C96: =SUBSTITUTE(TyourExposure,"X",IF(data_sheet!D8>=3,"high",IF(data_sheet!D10>=2,"moderate","low"))) -> Your site is exposed to low levels of sea salt and other corrosive substances.
C97: =text_sheet!C28 -> All buildings in New Zealand are classified into exposure zones. The zoning reflects site exposure to sea spray or geothermal areas and will determine the materials that can be used. For example, metal claddings and fastenings will rust more quickly than stainless steel fastenings when exposed to sea spray. The site zone will affect guarantees manufacturers offer on their products. Prefabrication is no different in this regard to traditional construction and can be used in corrosion zones, with choices about materials used determining the durability at the structure.
C103: =SUBSTITUTE(TyourWind,"X",IF(data_sheet!D12>=3,"exposed to lee winds",IF(data_sheet!D17>=2,"subject to strong winds","not subject to strong winds"))) -> Your site is in a region not subject to strong winds.
C104: =text_sheet!C29 -> Buildings are required to withstand lateral loads applied by wind. The amount of bracing required to resist the lateral loads on the building is based on the design wind speed. NZS 3604 divides New Zealand into two wind regions (A and W) and several lee zone areas-these are areas where the landforms create localized wind acceleration resulting in higher wind speeds than the rest of the region. Prefabrication is no different in this regard to traditional construction, and can be designed to have the required bracing elements.
C110: =SUBSTITUTE(SUBSTITUTE(SUBSTITUTE(TyourSiteAccess,"Xa",IF(SiteAccess=1,"an urban",IF(SiteAccess=2,"a suburban","a rural"))),"Xb",IF(AccessRestricted," Access to your site is restricted. ","")),"Xc",IF(SiteRestricted," There are obstructions around your site.","")) -> Your site is situated in a suburban location.
C111: =TinfoSiteAccessA -> Site access is a very important aspect of any construction project. It is necessary to have a clear understanding of the site and the methods of delivery to and from as this can have influence on both cost and time overruns. We have broken this into three types of site:
C114: =TinfoSiteAccessB -> • Urban locations typically require craneage to access sites, which is specific to the site and not assessed with this tool.
C115: =TinfoSiteAccessC -> • Suburban locations may have infrastructure and utility lines that restrict access, which are site specific and no assessed with this tool.
C117: =TinfoSiteAccessD -> • Rural locations are likely to have slope or vegetation restrictions, and potentially narrow difficult roads, which are site specific and not assessed with this tool.
C119: =TinfoSiteAccessE -> • Access restrictions: there is no access for HGV's or large mobile cranes due to low road bridges, long/windy/narrow driveways, or poor bearing surfaces. This restricts access to small rigid HGV's with Hilabs, and LGVs.
C121: =TinfoSiteAccessF -> • Site restrictions: there is no ability to swing a load due to neighbouring buildings, infrastructure, vegetation, etc. Hence no craneage is possible.
C127: Disclaimer
C128: =Tabout4 -> PrefabNZ Incorporated can not be held responsible for the reliability of the Prefab Toolkit results. The results are limited by the quality of case study data which has been supplied confidentially by other parties. The Prefab Toolkit will be updated over time with future versions of increasing accuracy. The purpose of the Prefab Toolkit is as a 'conversation starter' to enable projects to consider prefabrication as an alternative to traditional construction methods. Any feedback about the Prefab Toolkit can be directed to info@prefabnz.com
